bitfinex-derivatives/quotes_BTCF0:USTF0_20250903
["timestamp","ask_amount","ask_price","bid_price","bid_amount"]
[1756929557458,0.01461,112300.0,112280.0,1.96995304]
[1756929557661,0.01461,112300.0,112290.0,2.60764434]
[1756929557662,0.03822,112300.0,112290.0,2.60764434]
[1756929557858,0.03812,112300.0,112290.0,2.60764434]
[1756929558063,0.03812,112300.0,112290.0,2.97244868]
[1756929558264,0.0142,112310.0,112290.0,3.70205736]
[1756929558464,0.03781,112310.0,112300.0,1.55092434]
[1756929558671,0.03771,112310.0,112300.0,1.55092434]
[1756929559265,0.03771,112310.0,112300.0,1.6213859]
[1756929559767,0.03771,112310.0,112300.0,0.44086156]
[1756929559966,0.03771,112310.0,112300.0,1.6213459]
[1756929560166,0.03871,112310.0,112300.0,1.6213459]
[1756929560568,0.04071,112310.0,112300.0,1.6213459]
[1756929560767,0.04071,112310.0,112300.0,1.63044801]
[1756929562066,0.04071,112310.0,112300.0,0.81476801]
[1756929562273,0.04071,112310.0,112300.0,1.63040801]
[1756929563173,0.04071,112310.0,112300.0,0.81476801]
[1756929563375,0.04071,112310.0,112300.0,1.63036801]
[1756929566669,0.03846678,112310.0,112300.0,1.63036801]
[1756929566969,0.0171,112310.0,112300.0,1.71938091]
[1756929567169,0.0171,112310.0,112300.0,1.63036801]
[1756929567468,0.003,112310.0,112300.0,2.00036801]
[1756929567667,0.003,112310.0,112300.0,2.08938091]
[1756929569272,0.003,112310.0,112300.0,1.72938091]
[1756929569469,0.003,112310.0,112300.0,1.36457657]
[1756929569671,0.003,112310.0,112300.0,1.12476801]
[1756929569872,0.003,112310.0,112300.0,1.94020801]
[1756929570173,0.003,112310.0,112300.0,2.02922091]
[1756929570368,0.003,112310.0,112300.0,2.27922091]
[1756929570569,0.02435945,112310.0,112300.0,2.27922091]
[1756929571775,0.003,112310.0,112300.0,2.27922091]
[1756929572778,0.0171,112310.0,112300.0,1.37476801]
[1756929572977,0.0171,112310.0,112300.0,2.27914071]
[1756929573374,0.0171,112310.0,112300.0,1.91433637]
[1756929573573,0.0171,112310.0,112300.0,2.27914071]
[1756929574482,0.003,112310.0,112300.0,2.27914071]
[1756929576075,0.03781,112320.0,112310.0,0.3674]
[1756929576277,0.05905674,112320.0,112310.0,1.07220434]
[1756929577173,0.06205674,112320.0,112310.0,1.07220434]
[1756929577376,0.06205674,112320.0,112310.0,0.7074]
[1756929577577,0.06205674,112320.0,112310.0,1.88744434]
[1756929577776,0.67686108,112320.0,112310.0,1.52264]
[1756929577978,0.67686108,112320.0,112310.0,1.19264]
[1756929578272,0.67886108,112320.0,112310.0,1.18304]
[1756929578868,0.67886108,112320.0,112310.0,0.3678]
[1756929579172,0.67886108,112320.0,112310.0,1.18304]
[1756929579377,0.72691053,112320.0,112310.0,0.3678]
[1756929579581,0.67886108,112320.0,112310.0,1.18304]
[1756929580679,0.31405674,112320.0,112310.0,1.18304]
[1756929580875,0.67886108,112320.0,112310.0,1.18304]
[1756929581587,0.67886108,112320.0,112310.0,1.1926]
[1756929582773,0.67886108,112320.0,112310.0,0.3774]
[1756929583077,1.82132355,112320.0,112310.0,1.173]
[1756929583683,1.82132355,112320.0,112310.0,1.176]
[1756929583883,1.7732741,112320.0,112310.0,1.176]
[1756929584278,1.7732741,112320.0,112300.0,0.36093408]
[1756929584279,0.03636,112310.0,112300.0,0.36093408]
[1756929584584,0.42251108,112310.0,112300.0,1.17613408]
[1756929584878,0.47044244,112310.0,112300.0,0.36093408]
[1756929585079,0.47044244,112310.0,112300.0,1.17613408]
[1756929585579,0.48053816,112310.0,112300.0,1.17613408]
[1756929586391,0.47144244,112310.0,112300.0,1.17613408]
[1756929587082,0.47244244,112310.0,112300.0,1.17613408]
[1756929587386,0.47244244,112310.0,112300.0,1.18573408]
[1756929589183,0.47244244,112310.0,112300.0,1.55053842]
[1756929589184,0.05970674,112310.0,112300.0,1.55053842]
[1756929590187,0.05970674,112310.0,112300.0,1.80053842]
[1756929590690,0.05977709,112310.0,112300.0,1.80053842]
[1756929591487,0.03709709,112310.0,112300.0,1.80053842]
[1756929595291,0.03709709,112310.0,112300.0,0.98533842]
[1756929595488,0.05977709,112310.0,112300.0,1.18573408]
[1756929595687,0.05977709,112310.0,112300.0,1.55053842]
[1756929595993,0.42458143,112310.0,112300.0,1.55053842]
[1756929596291,0.42458143,112310.0,112300.0,1.18573408]
[1756929596892,0.05977709,112310.0,112300.0,1.18573408]
[1756929597092,0.42458143,112310.0,112300.0,1.18573408]
[1756929598282,0.42458143,112310.0,112300.0,0.37053408]
[1756929598590,0.03636,112290.0,112280.0,0.39744]
[1756929598794,0.04409709,112290.0,112280.0,1.2126]
[1756929599292,0.40890143,112290.0,112280.0,1.2126]
[1756929599789,0.04409709,112290.0,112280.0,1.2136]
[1756929600089,0.40890143,112290.0,112280.0,1.2136]
[1756929600291,0.02141709,112290.0,112280.0,1.2136]
[1756929600492,0.02141709,112290.0,112280.0,1.57840434]
[1756929600691,0.02141709,112290.0,112280.0,1.2136]
[1756929600892,0.38622143,112290.0,112280.0,1.2136]
[1756929601484,0.40890143,112290.0,112280.0,0.39844]
[1756929601692,0.40890143,112290.0,112280.0,1.21368]
[1756929601693,0.78738577,112290.0,112280.0,1.21368]
[1756929601993,0.40890143,112290.0,112280.0,1.21368]
[1756929603588,0.42258143,112290.0,112280.0,0.39844]
[1756929603795,1.51699445,112290.0,112280.0,1.21364]
[1756929603994,1.51699445,112290.0,112280.0,1.21372]
[1756929604197,1.50331445,112290.0,112280.0,1.21372]
[1756929604390,0.40890143,112290.0,112280.0,1.21372]
[1756929604894,0.77370577,112290.0,112280.0,1.214]
[1756929605294,0.40890143,112290.0,112280.0,1.214]
[1756929605495,0.38622143,112290.0,112280.0,1.214]
[1756929606087,0.67258143,112290.0,112280.0,0.38473]
[1756929606286,0.67258143,112290.0,112250.0,1.89523]
[1756929606287,0.01368,112260.0,112250.0,1.89523]
[1756929606490,1.47289736,112260.0,112250.0,1.89523]
[1756929606788,1.49431515,112260.0,112250.0,2.71147]
[1756929606990,0.38622213,112260.0,112250.0,2.71159]
[1756929607494,0.3864443,112260.0,112250.0,2.71155]
[1756929608587,0.02141779,112260.0,112250.0,2.71155]
[1756929608790,0.74860651,112270.0,112260.0,0.03725]
[1756929608991,0.76989727,112270.0,112260.0,0.03725]
[1756929609995,0.77089727,112270.0,112260.0,0.03725]
[1756929610187,0.77088804,112270.0,112260.0,0.03725]
[1756929611396,0.78582804,112270.0,112260.0,0.03725]
[1756929611598,0.42602804,112270.0,112260.0,0.03725]
[1756929612397,0.04606153,112270.0,112260.0,0.03725]
[1756929612694,0.41108804,112270.0,112260.0,0.03725]
[1756929613599,0.40908804,112270.0,112260.0,0.03825]
[1756929614195,0.42402804,112270.0,112260.0,0.02393]
[1756929614501,0.78482804,112270.0,112260.0,0.02393]
[1756929615005,0.78482804,112270.0,112260.0,0.84005]
[1756929615496,0.42402804,112270.0,112260.0,0.85437]
[1756929615701,0.40908804,112270.0,112260.0,0.85437]
[1756929616094,0.40908804,112270.0,112260.0,0.03825]
[1756929616296,0.40908804,112270.0,112260.0,0.85453]
[1756929616489,0.41208804,112270.0,112260.0,0.85353]
[1756929617098,0.41108804,112270.0,112260.0,0.85353]
[1756929617604,0.41108804,112270.0,112260.0,1.21433]
[1756929618503,0.40908804,112270.0,112260.0,1.21533]
[1756929618699,0.40908804,112270.0,112260.0,0.85453]
[1756929620603,0.42402804,112270.0,112260.0,0.02393]
[1756929620805,0.42402804,112270.0,112260.0,0.84013]
[1756929621003,0.40908804,112270.0,112260.0,0.85445]
[1756929624292,0.42402804,112270.0,112260.0,0.02393]
[1756929624502,0.83276283,112270.0,112260.0,0.02393]
[1756929624705,0.83276283,112270.0,112260.0,0.83981]
[1756929624897,0.83276283,112270.0,112260.0,0.83989]
[1756929625602,0.83276283,112270.0,112260.0,0.85421]
[1756929626106,0.83276283,112270.0,112260.0,0.85321]
[1756929626501,0.83276283,112270.0,112260.0,0.83885]
[1756929626703,0.83376283,112270.0,112260.0,0.83885]
[1756929626899,0.01494,112260.0,112250.0,2.24232]
[1756929627103,1.85722757,112260.0,112250.0,2.6982]
[1756929627399,0.81008283,112260.0,112250.0,2.6982]
[1756929627703,0.81008283,112260.0,112250.0,1.88152]
[1756929628005,0.81008283,112260.0,112250.0,2.69816]
[1756929628201,0.44928283,112260.0,112250.0,2.69816]
[1756929628506,0.44928283,112260.0,112250.0,2.71348]
[1756929629309,0.81430934,112260.0,112250.0,1.89684]
[1756929629507,0.40134804,112260.0,112250.0,2.71348]
[1756929629909,0.40134804,112260.0,112250.0,1.88252]
[1756929630112,0.40134804,112260.0,112250.0,2.7134]
[1756929630310,0.81008283,112260.0,112250.0,2.7134]
[1756929630703,0.44928283,112260.0,112250.0,2.71332]
[1756929630904,0.81430934,112260.0,112250.0,2.71332]
[1756929631100,0.81430934,112260.0,112250.0,2.71232]
[1756929631708,0.81430934,112260.0,112250.0,1.89584]
[1756929631913,0.81430934,112260.0,112250.0,2.71236]
[1756929632414,0.81430934,112260.0,112250.0,2.7122]
[1756929632813,1.90616236,112260.0,112250.0,2.69784]
[1756929633001,1.92231532,112260.0,112250.0,1.88152]
[1756929633206,1.92231532,112260.0,112250.0,2.69788]
[1756929633906,1.85822757,112260.0,112250.0,2.69788]
[1756929634315,2.15625868,112260.0,112250.0,2.69776]
[1756929635608,2.15625868,112260.0,112250.0,2.69804]
[1756929635910,2.15625868,112260.0,112250.0,1.89584]
[1756929636109,2.15625868,112260.0,112250.0,2.71416]
[1756929636415,2.10822757,112260.0,112250.0,2.69984]
[1756929637214,2.17231532,112260.0,112250.0,2.69984]
[1756929637917,2.17231532,112260.0,112250.0,2.71416]
[1756929638618,2.19588532,112260.0,112250.0,0.85671]
[1756929639306,1.94588532,112260.0,112250.0,0.85671]
[1756929640317,1.88179757,112260.0,112250.0,0.85671]
[1756929640516,0.02238153,112260.0,112250.0,0.85671]
[1756929640721,0.41407824,112260.0,112250.0,0.85671]
[1756929641015,0.45944977,112260.0,112250.0,0.85671]
[1756929644115,0.82447628,112260.0,112250.0,0.85671]
[1756929644323,1.9153293,112260.0,112250.0,0.85671]
[1756929644620,0.45522326,112260.0,112250.0,0.85633]
[1756929644826,0.45944977,112260.0,112250.0,0.85633]
[1756929645306,0.07043326,112260.0,112250.0,1.46713]
[1756929646715,0.06943326,112260.0,112250.0,1.46713]
[1756929647015,0.04805173,112260.0,112250.0,1.47113]
[1756929647518,0.02138153,112260.0,112250.0,1.47113]
[1756929647815,0.79535977,112270.0,112250.0,1.47113]
[1756929648017,0.79535977,112270.0,112260.0,0.03881]
[1756929648018,0.45432326,112270.0,112260.0,0.03881]
[1756929648216,0.45422326,112270.0,112260.0,0.03881]
[1756929648409,0.09342326,112270.0,112260.0,0.03881]
[1756929648615,0.06943326,112270.0,112260.0,0.39961]
[1756929648916,0.06943326,112270.0,112260.0,0.03881]
[1756929649113,0.43706824,112270.0,112260.0,0.03881]
[1756929649319,0.45844977,112270.0,112260.0,0.03881]
[1756929650220,0.45844977,112270.0,112260.0,0.04426]
[1756929650614,0.45844977,112270.0,112260.0,0.04526]
[1756929652018,0.83281977,112270.0,112260.0,0.8514]
[1756929652220,0.83281977,112270.0,112260.0,0.85236]
[1756929652920,0.83281977,112270.0,112260.0,0.0314]
[1756929653124,1.19784628,112270.0,112260.0,0.82725]
[1756929653322,0.83281977,112270.0,112260.0,0.82725]
[1756929653714,0.83281977,112270.0,112260.0,0.00645]
[1756929653924,0.83281977,112270.0,112260.0,0.82725]
[1756929654123,2.1778993,112270.0,112260.0,0.00445]
[1756929654422,2.17789117,112270.0,112260.0,0.82525]
[1756929654623,2.12984757,112270.0,112260.0,0.82525]
[1756929655323,2.19393532,112270.0,112260.0,0.82525]
[1756929655522,2.19393532,112270.0,112260.0,0.00445]
[1756929655916,2.19393532,112270.0,112260.0,0.82509]
[1756929656113,2.19393532,112270.0,112260.0,0.82064]
[1756929656925,2.19493532,112270.0,112260.0,0.82064]
[1756929657625,2.19693532,112270.0,112260.0,0.82064]
[1756929659321,1.94693532,112270.0,112260.0,0.82064]
[1756929659518,1.88284757,112270.0,112260.0,0.82064]
[1756929660322,1.88284757,112270.0,112260.0,0.82048]
[1756929660527,1.88284757,112270.0,112240.0,1.90133]
[1756929660528,0.03756,112260.0,112250.0,0.02495]
[1756929660828,1.92252487,112260.0,112250.0,0.84531]
[1756929661127,1.94394762,112260.0,112250.0,0.84531]
[1756929661529,1.94394762,112260.0,112250.0,0.02495]
[1756929661727,1.94394762,112260.0,112250.0,0.84527]
[1756929663520,1.87988879,112260.0,112250.0,0.84507]
[1756929663723,1.87988879,112260.0,112250.0,0.02495]
[1756929663923,1.87988879,112260.0,112250.0,0.84503]
[1756929668129,1.92792641,112260.0,112250.0,0.84451]
[1756929669424,1.92826589,112260.0,112250.0,0.84451]
[1756929669625,1.92826589,112260.0,112250.0,0.85905]
[1756929669826,1.56746589,112260.0,112250.0,0.85905]
[1756929670127,1.92826589,112260.0,112250.0,0.85905]
[1756929670335,0.45856175,112260.0,112250.0,1.10905]
[1756929670529,0.38653413,112260.0,112250.0,1.10905]
[1756929670930,0.43457175,112260.0,112250.0,1.10905]
[1756929671431,0.38653413,112260.0,112250.0,1.46985]
[1756929671635,0.38653413,112260.0,112250.0,1.4743]
[1756929671830,0.02142275,112260.0,112250.0,1.92846378]
[1756929672025,0.413249,112300.0,112290.0,0.01454]
[1756929672224,0.40912759,112300.0,112290.0,0.85889]
[1756929673231,0.40912759,112300.0,112290.0,0.85897]
[1756929673432,0.41312759,112300.0,112290.0,0.85897]
[1756929674037,0.41812759,112300.0,112290.0,0.85897]
[1756929674832,0.39556759,112300.0,112290.0,0.85897]
[1756929675030,0.41812759,112300.0,112290.0,0.85897]
[1756929675340,0.41812759,112300.0,112290.0,0.85929]
[1756929675539,0.43165759,112300.0,112290.0,0.85929]
[1756929676040,0.41812759,112300.0,112290.0,0.85929]
[1756929676240,0.41812759,112300.0,112290.0,0.03901]
[1756929676443,0.41812759,112300.0,112290.0,0.86001]
[1756929676643,0.39556759,112300.0,112290.0,0.86001]
[1756929676847,0.39556759,112300.0,112290.0,1.11001]
[1756929677146,0.39556759,112300.0,112290.0,0.28901]
[1756929677351,0.39556759,112300.0,112290.0,1.10997]
[1756929677545,0.39556759,112300.0,112290.0,0.28901]
[1756929677747,0.41812759,112300.0,112290.0,0.28901]
[1756929678246,0.41812759,112300.0,112290.0,1.10981]
[1756929679244,1.52699173,112300.0,112290.0,0.84523]
[1756929679547,1.15756897,112300.0,112290.0,0.84523]
[1756929680242,0.79245759,112300.0,112290.0,0.84523]
[1756929681842,0.79245759,112300.0,112290.0,0.84471]
[1756929682035,2.13779173,112300.0,112270.0,0.37534]
[1756929682242,0.02256,112270.0,112260.0,0.03901]
[1756929682548,0.04401621,112270.0,112260.0,0.85977]
[1756929683436,0.04601621,112270.0,112260.0,0.85977]
[1756929683846,0.04601621,112270.0,112260.0,0.86422]
[1756929684040,0.04601621,112270.0,112260.0,0.04346]
[1756929684241,0.04601621,112270.0,112260.0,0.86418]
[1756929684443,0.04601621,112270.0,112260.0,0.86394]
[1756929684647,0.04601621,112270.0,112260.0,0.04346]
[1756929684844,0.04601621,112270.0,112260.0,0.8639]
[1756929685350,0.04701621,112270.0,112260.0,0.8639]
[1756929686252,0.04701621,112270.0,112260.0,0.04346]
[1756929686552,0.04701621,112270.0,112260.0,0.86386]
[1756929690953,0.02445621,112270.0,112260.0,0.86386]
[1756929691155,0.38956759,112270.0,112260.0,0.86386]
[1756929691955,0.41212759,112270.0,112260.0,0.86386]
[1756929692654,1.15156897,112270.0,112260.0,0.04346]
[1756929692959,2.13179173,112270.0,112260.0,0.84928]
[1756929693349,2.14080193,112270.0,112260.0,0.84928]
[1756929693746,2.14080193,112270.0,112260.0,0.02892]
[1756929694052,2.14080193,112270.0,112260.0,0.82461]
[1756929694665,2.14080193,112270.0,112260.0,0.00445]
[1756929694858,2.18883955,112270.0,112260.0,0.82465]
[1756929695459,2.18883955,112270.0,112260.0,0.84912]
[1756929696260,2.18883955,112270.0,112260.0,0.02892]
[1756929696454,2.18883955,112270.0,112260.0,0.84916]
[1756929697060,2.18883955,112270.0,112260.0,0.00445]
[1756929697259,2.18883955,112270.0,112260.0,0.82493]
[1756929697746,2.18883955,112270.0,112260.0,0.00445]
[1756929697950,2.18883955,112270.0,112260.0,0.82485]
[1756929698159,2.18883955,112270.0,112260.0,0.84932]
[1756929698357,2.18883955,112270.0,112260.0,0.02892]
[1756929698657,2.18883955,112270.0,112260.0,0.84924]
[1756929706266,0.71486403,112270.0,112260.0,0.86284]
[1756929706467,1.07997541,112270.0,112260.0,0.86284]
[1756929706659,1.09494541,112270.0,112260.0,0.86284]
[1756929706855,1.46005679,112270.0,112260.0,0.02892]
[1756929707065,1.46005679,112270.0,112260.0,0.84856]
[1756929707265,0.82997541,112270.0,112260.0,0.86216]
[1756929707860,0.82997541,112270.0,112260.0,0.85771]
[1756929708062,0.82096521,112270.0,112260.0,0.85771]
[1756929708769,0.82096521,112270.0,112260.0,1.10771]
[1756929709768,0.83698642,112270.0,112260.0,1.10771]
[1756929713261,1.2170678,112270.0,112260.0,1.10711]
[1756929714368,0.85195642,112270.0,112260.0,1.10711]
[1756929714877,0.83698642,112270.0,112260.0,1.10711]
[1756929715263,0.47187504,112270.0,112260.0,1.10711]
[1756929715465,0.83698642,112270.0,112260.0,1.10711]
[1756929716163,0.47187504,112270.0,112260.0,1.10711]
[1756929716362,0.83698642,112270.0,112260.0,1.10711]
[1756929716559,0.44931504,112270.0,112260.0,0.85711]
[1756929716864,0.44931504,112270.0,112260.0,1.10711]
[1756929716865,0.81442642,112270.0,112260.0,1.10711]
[1756929718163,0.45362642,112270.0,112260.0,1.10711]
[1756929718363,0.38956759,112270.0,112260.0,1.10711]
[1756929718864,0.45362642,112270.0,112260.0,1.10711]
[1756929719264,0.45362642,112270.0,112260.0,0.85711]
[1756929719672,0.43761776,112270.0,112260.0,0.85711]
[1756929720175,0.46197776,112270.0,112260.0,0.85711]
[1756929720367,0.82277776,112270.0,112260.0,0.85711]
[1756929720568,0.45766638,112270.0,112260.0,0.85711]
[1756929720767,0.79841776,112270.0,112260.0,0.85711]
[1756929720969,0.82277776,112270.0,112260.0,0.85711]
[1756929721375,0.46197776,112270.0,112260.0,0.85711]
[1756929721674,0.82277776,112270.0,112260.0,0.85711]
[1756929722280,0.46197776,112270.0,112260.0,0.03807]
[1756929722472,0.46197776,112270.0,112260.0,0.85691]
[1756929722864,0.46197776,112270.0,112260.0,0.85667]
[1756929723272,0.41392759,112270.0,112260.0,0.85667]
[1756929723479,0.77472759,112270.0,112260.0,0.85667]
[1756929723776,0.77472759,112270.0,112260.0,0.03807]
[1756929723976,0.77472759,112270.0,112260.0,0.85663]
[1756929727986,0.77472759,112270.0,112260.0,0.86108]
[1756929728174,0.78969759,112270.0,112260.0,0.04252]
[1756929728373,1.88503173,112270.0,112260.0,0.8468]
[1756929728775,0.78969759,112270.0,112260.0,0.8468]
[1756929729484,0.82266817,112270.0,112260.0,0.86031]
[1756929731988,0.82266817,112270.0,112260.0,0.04243]
[1756929732188,0.83666817,112270.0,112260.0,0.84716]
[1756929732487,0.82266817,112270.0,112260.0,0.86067]
[1756929732699,0.83666817,112270.0,112260.0,0.86067]
[1756929734888,0.47168708,112270.0,112260.0,0.86067]
[1756929735087,0.83666817,112270.0,112260.0,0.86067]
[1756929735475,0.47168708,112270.0,112260.0,0.86067]
[1756929735688,0.47168708,112270.0,112260.0,0.02892]
[1756929735689,0.83666817,112270.0,112260.0,0.02892]
[1756929735889,0.83666817,112270.0,112260.0,0.84716]
[1756929737386,0.83666817,112270.0,112260.0,0.02892]
[1756929737692,0.83666817,112270.0,112260.0,0.84384]
[1756929737892,0.83666817,112270.0,112260.0,0.02892]
[1756929738197,0.83666817,112270.0,112260.0,0.8468]
[1756929740294,0.7885973,112270.0,112260.0,0.8468]
[1756929742995,0.42361621,112270.0,112260.0,0.84235]
[1756929743292,0.7885973,112270.0,112260.0,0.85586]
[1756929744389,0.85265613,112270.0,112260.0,0.85586]
[1756929748292,0.85265613,112270.0,112260.0,0.84235]
[1756929748901,0.85265613,112270.0,112260.0,0.85586]
[1756929749298,0.85265613,112270.0,112260.0,0.03798]
[1756929749496,0.7885973,112270.0,112260.0,0.85478]
[1756929749698,0.83672075,112270.0,112260.0,0.85478]
[1756929750790,0.47173966,112270.0,112260.0,0.85478]
[1756929750994,0.82272075,112270.0,112260.0,0.85478]
[1756929751204,0.7745973,112270.0,112260.0,0.85478]
[1756929751404,0.7745973,112270.0,112260.0,0.03798]
[1756929751603,0.7745973,112270.0,112260.0,0.85478]
[1756929752207,0.82272182,112270.0,112260.0,0.85478]
[1756929752505,0.7745973,112270.0,112260.0,0.85478]
[1756929752905,0.7885973,112270.0,112260.0,0.85478]
[1756929753407,1.15357839,112270.0,112260.0,0.02447]
[1756929753610,2.1975994,112270.0,112260.0,0.81676]
[1756929753806,2.13354057,112270.0,112260.0,0.8394]
[1756929757312,2.18164215,112270.0,112260.0,0.8394]
[1756929758711,2.18164215,112270.0,112260.0,0.02264]
[1756929759620,2.1975994,112270.0,112260.0,0.02264]
[1756929760914,1.0385973,112270.0,112260.0,0.03697]
[1756929761115,1.40357839,112270.0,112260.0,0.03697]
[1756929761714,1.40357839,112270.0,112260.0,0.02264]
[1756929762320,1.46763722,112270.0,112260.0,0.02264]
[1756929766424,1.40357839,112270.0,112260.0,0.02264]
[1756929769129,1.4677037,112270.0,112260.0,0.02264]
[1756929775426,1.4677037,112270.0,112250.0,0.83031]
[1756929775633,1.90768387,112260.0,112250.0,0.85355]
[1756929775827,1.99902837,112260.0,112250.0,0.85355]
[1756929776523,1.99902837,112260.0,112250.0,0.84004]
[1756929776930,1.99902837,112260.0,112250.0,0.83996]
[1756929789447,1.99933449,112260.0,112250.0,0.83996]
[1756929789646,1.95123498,112260.0,112250.0,0.83996]
[1756929792949,1.93636498,112260.0,112250.0,0.85416]
[1756929793346,0.4761345,112260.0,112250.0,0.85416]
[1756929793648,0.06957591,112260.0,112250.0,1.83001762]
[1756929793943,0.43463353,112260.0,112250.0,1.46496]
[1756929794644,0.43463353,112260.0,112250.0,1.79496]
[1756929794850,0.02145621,112260.0,112250.0,2.29351992]
[1756929795052,0.06973823,112270.0,112260.0,0.03811]
[1756929795248,0.06963823,112270.0,112260.0,0.39891]
[1756929795448,0.02151853,112270.0,112260.0,1.38396762]
[1756929795950,0.02151853,112270.0,112260.0,1.34396762]
[1756929796150,0.02251853,112270.0,112260.0,1.34396762]
[1756929796350,0.02451853,112270.0,112260.0,1.34396762]
[1756929796850,0.02451853,112270.0,112260.0,0.97891]
[1756929797051,0.02451853,112270.0,112260.0,1.34396762]
[1756929797649,0.02451853,112270.0,112260.0,1.01396762]
[1756929797850,0.02451853,112270.0,112260.0,1.39396762]
[1756929799451,0.02451853,112270.0,112260.0,1.46543]
[1756929800256,0.02451853,112270.0,112260.0,1.83048762]
[1756929801158,0.02451853,112270.0,112260.0,1.01396762]
[1756929801356,0.38957615,112270.0,112260.0,1.46539]
[1756929810257,0.41375615,112270.0,112260.0,1.21523]
[1756929811565,0.41375615,112270.0,112260.0,0.39891]
[1756929811749,0.41375615,112270.0,112260.0,1.21519]
[1756929812356,0.38957615,112270.0,112260.0,1.21519]
[1756929812749,0.38957615,112270.0,112260.0,1.29519]
[1756929813561,0.41375615,112270.0,112260.0,1.29515]
[1756929813957,0.04869853,112270.0,112260.0,1.29515]
[1756929814158,0.41375615,112270.0,112260.0,1.29515]
[1756929817368,0.41375615,112270.0,112260.0,0.47891]
[1756929817567,0.42868615,112270.0,112260.0,1.21511]
[1756929818069,0.04869853,112270.0,112260.0,1.21511]
[1756929818267,0.41375615,112270.0,112260.0,1.21511]
[1756929819067,0.41375615,112270.0,112260.0,1.21956]
[1756929820471,0.04869853,112270.0,112260.0,1.21956]
[1756929820771,0.41375615,112270.0,112260.0,1.21956]
[1756929821470,0.41375615,112270.0,112260.0,0.40336]
[1756929821663,0.41375615,112270.0,112260.0,1.21956]
[1756929823062,0.41375615,112270.0,112260.0,1.21952]
[1756929824074,0.04869853,112270.0,112260.0,1.21952]
[1756929824373,0.41375615,112270.0,112260.0,1.21952]
[1756929828572,0.42762615,112270.0,112260.0,0.85864]
[1756929828776,0.42762615,112270.0,112260.0,0.84444]
[1756929830177,0.42762615,112270.0,112260.0,0.85885]
[1756929833379,0.47574585,112270.0,112260.0,0.85885]
[1756929835581,0.47574585,112270.0,112260.0,0.02836]
[1756929835776,0.47574585,112270.0,112260.0,0.8444]
[1756929836577,0.83654585,112270.0,112260.0,0.8444]
[1756929837181,0.83654585,112270.0,112260.0,0.02836]
[1756929837577,0.72148823,112270.0,112260.0,0.8444]
[1756929837780,1.08654585,112270.0,112260.0,0.8444]
[1756929839086,2.19772432,112270.0,112260.0,0.82049]
[1756929839285,1.94772432,112270.0,112260.0,0.82049]
[1756929839685,2.13359901,112270.0,112260.0,0.82049]
[1756929839984,2.13359901,112270.0,112260.0,0.00445]
[1756929840184,2.13359901,112270.0,112260.0,0.82049]
[1756929840480,2.19769014,112270.0,112260.0,0.00445]
[1756929840685,2.19769014,112270.0,112260.0,0.82049]
[1756929842087,2.19769014,112270.0,112260.0,0.81604]
[1756929842478,2.19769014,112270.0,112250.0,1.88224]
[1756929842782,0.80381875,112260.0,112250.0,1.88224]
[1756929842982,1.92051014,112260.0,112250.0,2.69832]
[1756929843182,0.02331,112240.0,112230.0,0.04314]
[1756929843483,0.40988615,112240.0,112230.0,0.92922]
[1756929844487,0.40988615,112240.0,112230.0,0.92926]
[1756929845382,0.40988615,112240.0,112230.0,0.11314]
[1756929845687,0.40988615,112240.0,112230.0,0.93126]
[1756929845886,0.40988615,112240.0,112230.0,0.93226]
[1756929846382,0.40988615,112240.0,112230.0,0.93126]
[1756929848384,0.38657615,112240.0,112230.0,0.93126]
[1756929848689,0.40988615,112240.0,112230.0,0.93126]
[1756929848881,0.40988615,112240.0,112230.0,0.11514]
[1756929849082,0.40988615,112240.0,112230.0,0.9313]
[1756929849482,0.40994933,112240.0,112230.0,0.9313]
[1756929852291,0.40994933,112240.0,112230.0,1.2921]
[1756929852992,0.38663933,112240.0,112230.0,1.2921]
[1756929853794,0.41114933,112240.0,112230.0,0.9313]
[1756929854090,0.41114933,112240.0,112230.0,0.8613]
[1756929855193,0.04602853,112240.0,112230.0,0.8613]
[1756929855385,0.41114933,112240.0,112230.0,0.8613]
[1756929856996,0.41114933,112240.0,112230.0,1.2213]
[1756929857196,0.02151853,112240.0,112230.0,2.2072208]
[1756929857389,0.02151853,112240.0,112230.0,2.1572208]
[1756929858196,0.02151853,112240.0,112230.0,2.1527708]
[1756929859389,0.02151853,112240.0,112230.0,2.1572208]
[1756929860897,0.02151853,112240.0,112230.0,1.7921]
[1756929861989,0.38663933,112240.0,112230.0,1.47218]
[1756929864296,0.38663933,112240.0,112230.0,1.85218]
[1756929864597,0.38663933,112240.0,112230.0,1.49218]
[1756929864796,0.38663933,112240.0,112230.0,1.74218]
[1756929864995,0.38663933,112240.0,112230.0,1.83218]
[1756929865496,0.02151853,112240.0,112230.0,1.83218]
[1756929866786,0.02151853,112240.0,112230.0,1.01594]
[1756929867000,0.41114933,112240.0,112230.0,0.65594]
[1756929867194,0.41114933,112240.0,112230.0,1.47218]
[1756929869401,0.41114933,112240.0,112230.0,0.65594]
[1756929869700,0.41114933,112240.0,112230.0,1.47218]
[1756929871898,0.41114933,112240.0,112230.0,1.74218]
[1756929875801,0.02151853,112240.0,112230.0,2.1073008]
[1756929875997,0.02151853,112240.0,112230.0,1.8573008]
[1756929876393,0.02151853,112240.0,112230.0,1.0410608]
[1756929876600,0.02151853,112240.0,112230.0,1.8572608]
[1756929877001,0.02151853,112240.0,112230.0,1.49214]
[1756929880207,0.02151853,112240.0,112230.0,2.1072608]
[1756929881605,0.02151853,112240.0,112230.0,1.74214]
[1756929881907,0.02151853,112240.0,112230.0,2.1072608]
[1756929883108,0.02151853,112240.0,112230.0,2.3724608]
[1756929886909,0.02151853,112240.0,112230.0,2.3723808]
[1756929891209,0.02151853,112240.0,112230.0,1.19114]
[1756929891416,0.02151853,112240.0,112230.0,2.3723408]
[1756929891607,0.02151853,112240.0,112230.0,2.00722]
[1756929891917,0.02151853,112240.0,112230.0,2.3723408]
[1756929899228,0.02151853,112240.0,112230.0,2.1223408]
[1756929905633,0.02151853,112240.0,112230.0,1.3062608]
[1756929905930,0.02151853,112240.0,112230.0,2.1222208]
[1756929909241,0.02151853,112240.0,112230.0,1.7571]
[1756929909431,0.02151853,112240.0,112230.0,2.12209712]
[1756929910040,0.02151853,112240.0,112230.0,1.30613712]
[1756929910336,0.02151853,112240.0,112230.0,2.12209712]
[1756929914243,0.02151853,112240.0,112230.0,1.30613712]